bitfinex/quotes_BTCUSD_20250324
["timestamp","ask_amount","ask_price","bid_price","bid_amount"]
[1742852015160,0.55258085,88220.0,88219.0,6.7e-07]
[1742852015333,0.79251849,88220.0,88219.0,6.7e-07]
[1742852015530,0.79624603,88220.0,88219.0,6.7e-07]
[1742852016695,0.80124603,88220.0,88219.0,6.7e-07]
[1742852017622,0.82231683,88220.0,88219.0,6.7e-07]
[1742852018546,0.82731683,88220.0,88219.0,6.7e-07]
[1742852018889,0.83231683,88220.0,88219.0,6.7e-07]
[1742852019479,0.538062,88212.0,88211.0,0.00196067]
[1742852019681,0.67053621,88212.0,88211.0,0.00196067]
[1742852020395,0.88852931,88212.0,88211.0,0.00196067]
[1742852020536,0.73784931,88212.0,88211.0,6.7e-07]
[1742852020740,0.74784931,88212.0,88211.0,6.7e-07]
[1742852020944,0.69173364,88212.0,88211.0,6.7e-07]
[1742852021160,0.81699664,88212.0,88211.0,6.7e-07]
[1742852021384,0.82199664,88212.0,88211.0,6.7e-07]
[1742852021600,0.82245364,88212.0,88211.0,6.7e-07]
[1742852027400,0.538065,88211.0,88210.0,7e-08]
[1742852027764,0.65598243,88211.0,88210.0,7e-08]
[1742852028308,0.78170243,88211.0,88210.0,7e-08]
[1742852028726,0.78670243,88211.0,88210.0,7e-08]
[1742852028953,0.80945054,88211.0,88210.0,7e-08]
[1742852029947,0.82399139,88211.0,88210.0,7e-08]
[1742852030147,0.93824903,88211.0,88210.0,7e-08]
[1742852031065,0.93324903,88211.0,88210.0,7e-08]
[1742852031268,0.80445054,88211.0,88210.0,7e-08]
[1742852031586,0.80945054,88211.0,88210.0,7e-08]
[1742852032033,0.80945054,88211.0,88199.0,4.7e-07]
[1742852032034,0.538094,88200.0,88199.0,4.7e-07]
[1742852032211,0.538094,88200.0,88197.0,8.7e-07]
[1742852032212,0.5381,88198.0,88197.0,8.7e-07]
[1742852032408,0.65235764,88198.0,88197.0,8.7e-07]
[1742852032565,0.65595685,88198.0,88197.0,8.7e-07]
[1742852034415,0.66095685,88198.0,88197.0,8.7e-07]
[1742852034641,0.77521449,88198.0,88197.0,8.7e-07]
[1742852034773,0.78021449,88198.0,88197.0,8.7e-07]
[1742852035739,0.78880974,88198.0,88197.0,8.7e-07]
[1742852036608,0.80655923,88198.0,88197.0,8.7e-07]
[1742852036806,0.69230159,88198.0,88197.0,8.7e-07]
[1742852038494,0.6745521,88198.0,88197.0,8.7e-07]
[1742852040621,0.6695521,88198.0,88197.0,8.7e-07]
[1742852040998,0.6745521,88198.0,88197.0,8.7e-07]
[1742852041668,0.6923017,88198.0,88197.0,8.7e-07]
[1742852041840,0.73111368,88198.0,88197.0,8.7e-07]
[1742852042237,0.71336408,88198.0,88197.0,8.7e-07]
[1742852044277,0.82486408,88198.0,88197.0,8.7e-07]
[1742852045505,0.95058408,88198.0,88197.0,8.7e-07]
[1742852046417,0.86908408,88198.0,88197.0,8.7e-07]
[1742852046581,0.88683576,88198.0,88197.0,8.7e-07]
[1742852049481,1.30373576,88198.0,88197.0,8.7e-07]
[1742852051176,0.78285685,88198.0,88197.0,8.7e-07]
[1742852051312,0.66859921,88198.0,88197.0,0.07640087]
[1742852051520,0.55169921,88198.0,88197.0,0.07640087]
[1742852053831,0.55169921,88198.0,88197.0,0.12180087]
[1742852054809,0.54669921,88198.0,88197.0,0.12180087]
[1742852055011,0.55169921,88198.0,88197.0,0.12180087]
[1742852055416,0.54169921,88198.0,88197.0,0.12180087]
[1742852055798,0.54969921,88198.0,88197.0,0.12180087]
[1742852056205,0.54469921,88198.0,88197.0,0.12180087]
[1742852057250,0.54769921,88198.0,88197.0,0.12180087]
[1742852063027,0.00959921,88198.0,88197.0,0.12180087]
[1742852063584,0.00959921,88198.0,88197.0,0.34856587]
[1742852063911,0.00959921,88198.0,88197.0,0.35990387]
[1742852064120,0.00659921,88198.0,88197.0,0.4998638]
[1742852064297,0.005,88198.0,88197.0,0.4998638]
[1742852065054,0.002,88198.0,88197.0,0.4998638]
[1742852065400,0.004,88198.0,88197.0,0.4998638]
[1742852065840,0.00751126,88198.0,88197.0,0.4998638]
[1742852066042,0.004,88198.0,88197.0,0.48870236]
[1742852066236,0.00751126,88198.0,88197.0,0.48870236]
[1742852066478,0.004,88198.0,88197.0,0.47736436]
[1742852067763,0.00751126,88198.0,88197.0,0.47736436]
[1742852068357,0.00751126,88198.0,88197.0,0.48870236]
[1742852068963,0.004,88198.0,88197.0,0.48870236]
[1742852075000,0.00754064,88198.0,88197.0,0.48870236]
[1742852075227,0.00754064,88198.0,88197.0,0.47736436]
[1742852077728,0.004,88198.0,88197.0,0.47736436]
[1742852078438,0.00754064,88198.0,88197.0,0.60304436]
[1742852078926,0.004,88198.0,88197.0,0.60304436]
[1742852079379,0.00754064,88198.0,88197.0,0.60304436]
[1742852079608,0.004,88198.0,88197.0,0.60304436]
[1742852079809,0.00754064,88198.0,88197.0,0.60304436]
[1742852083427,0.004,88198.0,88197.0,0.60304436]
[1742852083669,0.00754064,88198.0,88197.0,0.60304436]
[1742852090267,0.004,88198.0,88197.0,0.60304436]
[1742852091631,0.00754064,88198.0,88197.0,0.60304436]
[1742852092179,0.004,88198.0,88197.0,0.60304436]
[1742852092419,0.00754064,88198.0,88197.0,0.60304436]
[1742852094631,0.004,88198.0,88197.0,0.60304436]
[1742852094783,0.004,88198.0,88197.0,0.37627936]
[1742852094985,0.00761033,88198.0,88197.0,0.37627936]
[1742852095192,0.23437233,88198.0,88197.0,0.37627936]
[1742852095793,0.00761033,88198.0,88197.0,0.60304436]
[1742852101543,0.00761033,88198.0,88197.0,0.37627936]
[1742852101775,0.00761033,88198.0,88197.0,0.60304436]
[1742852102172,0.01051033,88198.0,88197.0,0.37627936]
[1742852102493,0.01051033,88198.0,88197.0,0.60304436]
[1742852103346,0.01051033,88198.0,88197.0,0.37627936]
[1742852103564,0.01051033,88198.0,88197.0,0.60304436]
[1742852104988,0.0069,88198.0,88197.0,0.60304436]
[1742852105608,0.01051267,88198.0,88197.0,0.60304436]
[1742852106444,0.0069,88198.0,88197.0,0.60304436]
[1742852108000,0.01050972,88198.0,88197.0,0.60304436]
[1742852111692,0.23727172,88198.0,88197.0,0.33087936]
[1742852111929,0.01050972,88198.0,88197.0,0.33087936]
[1742852112898,0.23727172,88198.0,88197.0,0.33087936]
[1742852113097,0.23727172,88198.0,88197.0,0.32937936]
[1742852113472,0.23727172,88198.0,88197.0,0.12879849]
[1742852113691,0.23727172,88198.0,88195.0,0.4086]
[1742852113692,0.011338,88196.0,88195.0,0.4086]
[1742852113856,0.538105,88196.0,88195.0,0.40901197]
[1742852114065,0.58772488,88196.0,88195.0,0.40901197]
[1742852114871,0.70398252,88196.0,88195.0,0.00041197]
[1742852115072,0.78308252,88196.0,88195.0,0.00041197]
[1742852115276,0.78208252,88196.0,88195.0,0.00041197]
[1742852115837,0.78108252,88196.0,88195.0,0.00041197]
[1742852116826,0.78308252,88196.0,88195.0,0.00041197]
[1742852117037,0.89734016,88196.0,88195.0,0.00041197]
[1742852117190,0.89734016,88196.0,88195.0,9.7e-07]
[1742852117191,0.90034016,88196.0,88195.0,9.7e-07]
[1742852117618,0.90834016,88196.0,88195.0,9.7e-07]
[1742852117983,0.90534016,88196.0,88195.0,9.7e-07]
[1742852118130,0.91389713,88196.0,88195.0,9.7e-07]
[1742852118510,0.91789713,88196.0,88195.0,9.7e-07]
[1742852119610,0.93564768,88196.0,88195.0,9.7e-07]
[1742852120307,1.06132768,88196.0,88195.0,9.7e-07]
[1742852121375,1.05232768,88196.0,88195.0,9.7e-07]
[1742852121571,1.06232768,88196.0,88195.0,9.7e-07]
[1742852122948,1.06232768,88196.0,88195.0,0.00034037]
[1742852123370,1.06249738,88196.0,88195.0,0.00034037]
[1742852124356,1.04474683,88196.0,88195.0,0.00034037]
[1742852127512,1.04474683,88196.0,88195.0,3.7e-07]
[1742852131607,1.04579004,88196.0,88195.0,3.7e-07]
[1742852138925,1.06354261,88196.0,88195.0,3.7e-07]
[1742852149860,1.04579004,88196.0,88195.0,3.7e-07]
[1742852150204,1.04079004,88196.0,88195.0,3.7e-07]
[1742852150393,1.04579004,88196.0,88195.0,3.7e-07]
[1742852150512,1.04079004,88196.0,88195.0,3.7e-07]
[1742852150942,1.04579004,88196.0,88195.0,3.7e-07]
[1742852151208,1.03579004,88196.0,88195.0,3.7e-07]
[1742852151452,1.04079004,88196.0,88195.0,3.7e-07]
[1742852151895,1.03579004,88196.0,88195.0,3.7e-07]
[1742852152113,1.46269004,88196.0,88195.0,3.7e-07]
[1742852152561,1.45769004,88196.0,88195.0,3.7e-07]
[1742852152775,1.47544274,88196.0,88195.0,3.7e-07]
[1742852153051,1.45769004,88196.0,88195.0,3.7e-07]
[1742852153452,1.45269004,88196.0,88195.0,3.7e-07]
[1742852153792,1.46269004,88196.0,88195.0,3.7e-07]
[1742852157131,1.48044276,88196.0,88195.0,3.7e-07]
[1742852158980,1.46269004,88196.0,88195.0,3.7e-07]
[1742852159416,1.48044272,88196.0,88195.0,3.7e-07]
[1742852165900,1.48044272,88196.0,88167.0,1e-06]
[1742852165901,0.53818,88168.0,88167.0,1e-06]
[1742852166149,0.89237528,88168.0,88167.0,4.304e-05]
[1742852166404,0.89691021,88168.0,88167.0,4.304e-05]
[1742852166667,0.538203,88160.0,88159.0,2.4e-07]
[1742852166936,0.65246064,88160.0,88159.0,8.2e-07]
[1742852167187,0.65699942,88160.0,88159.0,8.2e-07]
[1742852167423,0.538224,88152.0,88151.0,4.2e-07]
[1742852167662,0.54247161,88152.0,88151.0,4.2e-07]
[1742852168133,0.65672925,88152.0,88151.0,4.2e-07]
[1742852169078,0.65972925,88152.0,88151.0,4.2e-07]
[1742852169532,0.66272925,88152.0,88151.0,4.2e-07]
[1742852170322,0.77698689,88152.0,88151.0,0.00017012]
[1742852171478,0.77698689,88152.0,88151.0,1.2e-07]
[1742852172324,0.79387552,88152.0,88151.0,1.2e-07]
[1742852172682,0.80287552,88152.0,88151.0,1.2e-07]
[1742852173105,0.80287552,88152.0,88091.0,0.002]
[1742852173106,0.238381,88094.0,88091.0,0.002]
[1742852173330,0.65263864,88094.0,88093.0,1e-06]
[1742852173529,0.65263864,88094.0,88093.0,0.00041364]
[1742852173734,0.76689628,88094.0,88093.0,0.00041364]
[1742852173950,0.238381,88094.0,88093.0,0.00041364]
[1742852174190,0.238381,88094.0,88093.0,0.08321364]
[1742852174401,0.243381,88094.0,88093.0,0.08321364]
[1742852175573,0.247381,88094.0,88093.0,0.08321364]
[1742852175800,0.242381,88094.0,88093.0,0.08321364]
[1742852176033,0.247381,88094.0,88093.0,0.08321364]
[1742852176684,0.242381,88094.0,88093.0,0.08321364]
[1742852177537,0.247381,88094.0,88093.0,0.08321364]
[1742852181524,0.247381,88094.0,88093.0,0.08338354]
[1742852182402,0.2477208,88094.0,88093.0,0.08338354]
[1742852191556,0.0093398,88094.0,88093.0,0.32176654]
[1742852191780,0.0093398,88094.0,88093.0,0.45056503]
[1742852192474,0.0053398,88094.0,88093.0,0.45056503]
[1742852192700,0.0003398,88094.0,88093.0,0.45056503]
[1742852193423,0.0003398,88094.0,88093.0,0.85916503]
[1742852195881,0.0003398,88094.0,88093.0,0.86016503]
[1742852197284,0.0003398,88094.0,88093.0,0.85916503]
[1742852197541,0.0003398,88094.0,88093.0,0.86116503]
[1742852198219,0.0003398,88094.0,88093.0,1.16116503]
[1742852205319,0.0003398,88094.0,88093.0,1.70116503]
[1742852207244,8e-07,88094.0,88093.0,1.83116503]
[1742852207492,8e-07,88094.0,88093.0,1.87686503]
[1742852207752,0.02294178,88133.0,88132.0,0.238278]
[1742852207952,0.226917,88138.0,88132.0,0.12576]
[1742852207953,0.238271,88135.0,88132.0,0.12576]
[1742852208178,0.238275,88133.0,88132.0,0.12576]
[1742852208961,0.238275,88133.0,88132.0,0.12585367]
[1742852210274,0.242275,88133.0,88132.0,0.12585367]
[1742852210415,0.245275,88133.0,88132.0,0.12585367]
[1742852218557,0.2456148,88133.0,88132.0,0.12585367]
[1742852220360,0.226932,88132.0,88129.0,0.22653367]
[1742852221551,0.226932,88132.0,88130.0,0.12576]
[1742852222697,0.230932,88132.0,88130.0,0.12576]
[1742852223107,0.226932,88132.0,88130.0,0.12576]
[1742852223312,0.229932,88132.0,88130.0,0.12576]
[1742852223486,0.230932,88132.0,88130.0,0.12576]
[1742852223921,0.233932,88132.0,88130.0,0.12576]
[1742852224362,0.007,88132.0,88130.0,0.12576]
[1742852224942,0.233932,88132.0,88130.0,0.12576]
[1742852225319,0.007,88132.0,88130.0,0.352697]
[1742852225530,0.233934,88132.0,88130.0,0.12576]
[1742852226209,0.007,88132.0,88130.0,0.352695]
[1742852228077,0.233932,88132.0,88130.0,0.352695]
[1742852228950,0.226934,88131.0,88130.0,0.12576]
[1742852229140,0.233932,88132.0,88130.0,0.12576]
[1742852229890,0.229932,88132.0,88130.0,0.12576]
[1742852230199,0.003,88131.0,88130.0,0.12576]
[1742852230838,0.2302718,88132.0,88130.0,0.12576]
[1742852232039,0.2342718,88132.0,88130.0,0.12576]
[1742852232244,0.2312718,88132.0,88130.0,0.12576]
[1742852232446,0.003,88131.0,88130.0,0.12576]
[1742852232881,0.2312718,88132.0,88130.0,0.12576]
[1742852233105,0.2342718,88132.0,88130.0,0.12576]
[1742852233241,0.226934,88131.0,88130.0,0.12576]
[1742852233659,0.232934,88131.0,88130.0,0.12576]
[1742852233859,0.229934,88131.0,88130.0,0.12576]
[1742852236362,0.232934,88131.0,88130.0,0.12576]
[1742852236958,0.006,88131.0,88130.0,0.12576]
[1742852237467,0.232934,88131.0,88130.0,0.12576]
[1742852238148,0.24428,88131.0,88130.0,0.12576]
[1742852238344,0.232934,88131.0,88130.0,0.12576]
[1742852238760,0.006,88131.0,88130.0,0.12576]
[1742852239144,0.006,88131.0,88130.0,0.352697]
[1742852242060,0.0063398,88131.0,88130.0,0.352697]
[1742852249833,0.0063398,88131.0,88130.0,0.36723785]
[1742852250048,0.0063398,88131.0,88130.0,0.49284149]
[1742852251141,0.0033398,88131.0,88130.0,0.49284149]
[1742852251286,0.0053398,88131.0,88130.0,0.49284149]
[1742852251735,0.0023398,88131.0,88130.0,0.90144149]
[1742852251968,0.0003398,88131.0,88130.0,0.90144149]
[1742852252684,0.0013398,88131.0,88130.0,0.90144149]
[1742852252869,0.0003398,88131.0,88130.0,0.90144149]
[1742852253018,0.0003398,88131.0,88130.0,0.90244149]
[1742852253364,0.0003398,88131.0,88130.0,0.90344149]
[1742852265404,0.0003398,88131.0,88130.0,1.44324149]
[1742852266098,0.0003398,88131.0,88130.0,1.44320149]
[1742852300207,0.0003398,88131.0,88130.0,1.44316149]
[1742852338459,0.0003398,88131.0,88130.0,1.03456149]
[1742852361568,4.5e-07,88133.0,88132.0,0.538278]
[1742852361787,4.5e-07,88133.0,88132.0,0.82661027]
[1742852364137,4.5e-07,88133.0,88132.0,0.83061027]
[1742852364988,4.5e-07,88133.0,88132.0,0.83361027]
[1742852369963,8.5e-07,88133.0,88132.0,0.83361027]
[1742852379432,8.5e-07,88133.0,88132.0,1.37333027]
[1742852382037,8.5e-07,88133.0,88132.0,1.37349997]
[1742852387497,8.5e-07,88133.0,88132.0,1.49909997]
[1742852390031,8.5e-07,88133.0,88132.0,1.49509997]
[1742852390241,8.5e-07,88133.0,88132.0,1.49209997]
[1742852390775,8.5e-07,88133.0,88132.0,1.49709997]
[1742852392019,8.5e-07,88133.0,88132.0,1.50309997]
[1742852400486,8.5e-07,88133.0,88132.0,1.91669997]
[1742852400701,0.0753,88163.0,88162.0,0.238197]
[1742852400921,0.0458,88165.0,88164.0,0.226849]
[1742852401137,0.04592362,88165.0,88164.0,1.03226949]
[1742852402415,0.04592362,88165.0,88164.0,1.04374936]
[1742852405953,0.04592362,88165.0,88164.0,1.45234851]
[1742852406172,0.00012362,88165.0,88164.0,1.45234851]
[1742852406352,6.2e-07,88165.0,88164.0,1.45234851]
[1742852407235,6.2e-07,88165.0,88164.0,1.48760832]
[1742852407662,6.2e-07,88165.0,88164.0,1.45234851]
[1742852408313,6.2e-07,88165.0,88164.0,1.45334851]
[1742852408731,6.2e-07,88165.0,88164.0,1.45434851]
[1742852408965,6.2e-07,88165.0,88164.0,1.45634851]
[1742852417680,0.00034002,88165.0,88164.0,1.45634851]
[1742852418528,2e-08,88165.0,88164.0,1.83724851]
[1742852419739,2e-08,88165.0,88164.0,1.83524851]
[1742852420094,2e-08,88165.0,88164.0,1.83724851]
[1742852420386,2e-08,88165.0,88164.0,1.83524851]
[1742852420681,2e-08,88165.0,88164.0,1.83824851]
[1742852428743,2e-08,88165.0,88164.0,1.83524851]
[1742852428948,2e-08,88165.0,88164.0,1.83324851]
[1742852429163,2e-08,88165.0,88164.0,1.84224851]
[1742852429358,2e-08,88165.0,88164.0,1.84241821]
[1742852433339,2e-08,88165.0,88164.0,1.87762241]
[1742852433881,2e-08,88165.0,88164.0,1.84241821]
[1742852434415,2e-08,88165.0,88164.0,1.87763296]
[1742852448154,2e-08,88165.0,88164.0,1.87668461]
[1742852448563,2e-08,88165.0,88164.0,1.87573766]
[1742852453928,2e-08,88165.0,88164.0,1.79483766]
[1742852468517,2e-08,88165.0,88164.0,1.79083766]
[1742852468757,2e-08,88165.0,88164.0,1.79483766]
[1742852469716,2e-08,88165.0,88164.0,1.78983766]
[1742852469957,2e-08,88165.0,88164.0,1.79483766]
[1742852483131,2e-08,88165.0,88164.0,1.66923766]
[1742852483371,2e-08,88165.0,88164.0,1.79475766]
[1742852491466,2e-08,88165.0,88164.0,1.87135766]
[1742852491868,0.0003398,88183.0,88182.0,0.238143]
[1742852492105,8e-07,88183.0,88182.0,1.23627537]
[1742852493484,8e-07,88183.0,88182.0,1.23827537]
[1742852494193,8e-07,88183.0,88182.0,1.77775537]
[1742852494653,8e-07,88183.0,88182.0,1.77975537]
[1742852496003,8e-07,88183.0,88182.0,1.77775537]
[1742852496497,8e-07,88183.0,88182.0,1.78075537]
[1742852497767,8e-07,88183.0,88182.0,1.78475537]
[1742852501615,8e-07,88183.0,88182.0,1.77575537]
[1742852502055,8e-07,88183.0,88182.0,1.78475537]
[1742852502483,0.0001697,88196.0,88195.0,0.238108]
[1742852502484,5e-07,88196.0,88195.0,0.238108]
[1742852502684,0.0029,88198.0,88197.0,0.238103]
[1742852502685,5e-07,88198.0,88197.0,0.238103]
[1742852502795,5e-07,88198.0,88197.0,0.5275763]
[1742852502796,0.0001241,88198.0,88197.0,0.5275763]
[1742852502996,0.0001241,88198.0,88197.0,0.49238149]
[1742852505266,0.0001241,88198.0,88197.0,0.49638149]
[1742852505704,0.0001241,88198.0,88197.0,0.50138149]
[1742852506826,0.0001241,88198.0,88197.0,0.90998062]
[1742852507724,0.0001241,88198.0,88197.0,0.91853119]
[1742852508406,0.0001241,88198.0,88197.0,0.91353119]
[1742852508626,0.0001241,88198.0,88197.0,0.90953119]
[1742852508849,0.0001241,88198.0,88197.0,0.91853119]
[1742852510204,0.0001241,88198.0,88197.0,0.91870079]
[1742852511158,0.0004633,88198.0,88197.0,0.91870079]
[1742852512083,2e-07,88199.0,88198.0,0.25264085]
[1742852512300,2e-07,88199.0,88198.0,0.36689849]
[1742852513314,2e-07,88199.0,88198.0,0.38298856]
[1742852513473,2e-07,88199.0,88198.0,0.92234856]
[1742852514041,2e-07,88199.0,88198.0,0.92634856]
[1742852515693,2e-07,88199.0,88198.0,1.33494769]
[1742852517207,2e-07,88199.0,88198.0,1.46042769]
[1742852520916,2e-07,88199.0,88198.0,1.33494769]
[1742852521140,2e-07,88199.0,88198.0,1.46042769]
[1742852531507,2e-07,88199.0,88198.0,1.49567372]
[1742852534642,2e-07,88199.0,88198.0,1.49584332]
[1742852540408,2e-07,88199.0,88198.0,1.79584332]
[1742852544780,2e-07,88199.0,88198.0,1.81881427]
[1742852580729,0.0780398,88221.0,88198.0,1.81881427]
[1742852580730,1e-07,88211.0,88210.0,0.238067]
[1742852580945,1e-07,88211.0,88210.0,1.11071065]
[1742852582089,1e-07,88211.0,88210.0,1.11371065]
[1742852582985,1e-07,88211.0,88210.0,1.11671065]
[1742852583546,1e-07,88211.0,88210.0,1.11371065]
[1742852583993,1e-07,88211.0,88210.0,1.11671065]
[1742852584370,1e-07,88211.0,88210.0,1.12171065]
[1742852590756,1e-07,88211.0,88210.0,0.82671065]
[1742852591591,1e-07,88211.0,88210.0,0.82171065]
[1742852591733,1e-07,88211.0,88210.0,0.81571065]
[1742852592092,0.0003398,88221.0,88218.0,0.011335]
[1742852592317,8e-07,88220.0,88219.0,0.011335]
[1742852592527,6e-07,88221.0,88220.0,0.25258085]
[1742852592729,6e-07,88221.0,88220.0,0.36683849]
[1742852593752,6e-07,88221.0,88220.0,0.37183849]
[1742852595805,6e-07,88221.0,88220.0,0.37583849]
[1742852596612,6e-07,88221.0,88220.0,0.91503849]
[1742852596803,6e-07,88221.0,88220.0,0.92351637]
[1742852597031,6e-07,88221.0,88220.0,0.91851637]
[1742852597595,6e-07,88221.0,88220.0,0.91451637]
[1742852597819,6e-07,88221.0,88220.0,1.3231154]
[1742852597998,6e-07,88221.0,88220.0,1.3271154]
[1742852599090,6e-07,88221.0,88220.0,1.3321154]
[1742852600466,6e-07,88221.0,88220.0,1.35471629]
[1742852600670,6e-07,88221.0,88220.0,1.43131629]
[1742852600848,4e-07,88222.0,88221.0,0.25257885]
[1742852601048,4e-07,88222.0,88221.0,0.36683649]
[1742852602031,4e-07,88222.0,88221.0,0.37183649]
[1742852602434,3e-07,88225.0,88224.0,0.25256985]
[1742852602640,2e-07,88225.0,88224.0,0.36682749]
[1742852603679,0.0001699,88236.0,88235.0,0.011333]
[1742852603895,0.00029342,88236.0,88235.0,0.67413032]
[1742852604035,0.00029342,88236.0,88235.0,0.90079732]
[1742852605295,0.00029342,88236.0,88235.0,0.90279732]
[1742852605771,2.2e-07,88242.0,88241.0,0.25252485]
[1742852605973,2.2e-07,88242.0,88241.0,0.36678249]
[1742852606406,2.2e-07,88242.0,88241.0,0.37823918]
[1742852607578,2.2e-07,88242.0,88241.0,0.38023918]
[1742852607761,2.2e-07,88242.0,88241.0,0.37823918]
[1742852608142,2.2e-07,88242.0,88241.0,0.38723918]
[1742852609119,2.2e-07,88242.0,88241.0,0.40961002]
[1742852609527,0.0003394,88254.0,88248.0,0.237965]
[1742852609704,0.0003394,88254.0,88248.0,0.36676349]
[1742852610846,0.0003394,88254.0,88248.0,0.91724192]
[1742852611360,0.0003394,88254.0,88248.0,0.92024192]
[1742852613073,0.0003394,88254.0,88248.0,0.91724192]
[1742852613396,0.0003394,88254.0,88248.0,0.91824192]
[1742852613847,0.0003394,88254.0,88248.0,0.92124192]
[1742852615395,0.0003394,88254.0,88248.0,1.45520053]
[1742852616012,0.0003394,88254.0,88248.0,1.45120053]
[1742852616421,0.0003394,88254.0,88248.0,1.45220053]
[1742852616847,0.0003394,88254.0,88248.0,1.45120053]
[1742852617047,0.0003394,88254.0,88248.0,1.44820053]
[1742852617244,0.0003394,88254.0,88248.0,1.45220053]
[1742852617449,0.0003394,88254.0,88248.0,1.45620053]
[1742852619221,0.0813,88250.0,88248.0,1.30496868]
[1742852619519,0.0505698,88249.0,88248.0,1.43032868]
[1742852619739,0.0505698,88249.0,88248.0,1.44486953]
[1742852619920,0.0505698,88249.0,88248.0,1.45620053]
[1742852620126,0.0505698,88249.0,88248.0,1.44486953]
[1742852620549,0.0505698,88249.0,88248.0,1.45620053]
[1742852620751,0.0505698,88249.0,88248.0,1.4478421]
[1742852622940,0.0505698,88249.0,88248.0,1.4365111]
[1742852623165,0.0505698,88249.0,88248.0,1.4478421]
[1742852624051,0.0021698,88249.0,88248.0,1.4478421]
[1742852625267,0.0021698,88249.0,88248.0,1.3224821]
[1742852625467,0.0021698,88249.0,88248.0,1.4478421]
[1742852627471,0.0021698,88249.0,88248.0,1.18235261]
[1742852627728,0.0021698,88249.0,88248.0,1.30771261]
[1742852627906,0.0021698,88249.0,88248.0,1.31904361]
[1742852630028,0.02338521,88249.0,88248.0,1.31904361]
[1742852630392,0.02338521,88249.0,88248.0,1.4478421]
[1742852631366,0.0021698,88249.0,88248.0,1.4478421]
[1742852632550,0.0021698,88249.0,88248.0,1.4438421]
[1742852632913,0.0021698,88249.0,88248.0,1.4398421]
[1742852633126,0.0021698,88249.0,88248.0,1.4468421]
[1742852633395,0.0021698,88249.0,88248.0,1.4438421]
[1742852633656,0.0021698,88249.0,88248.0,1.4398421]
[1742852633908,0.0021698,88249.0,88248.0,1.4418421]
[1742852634172,0.02340099,88249.0,88248.0,1.4428421]
[1742852634415,0.02340099,88249.0,88248.0,1.4448421]
[1742852635688,0.0021698,88249.0,88248.0,1.4448421]
[1742852641270,0.0021698,88249.0,88248.0,1.7448421]
[1742852647016,0.0021698,88249.0,88248.0,1.77996199]
[1742852647225,8e-07,88249.0,88248.0,1.90926199]
[1742852647455,2e-07,88254.0,88253.0,0.537952]
[1742852647672,2e-07,88254.0,88253.0,0.83117038]
[1742852648955,2e-07,88254.0,88253.0,0.83717038]
[1742852649627,2e-07,88254.0,88253.0,0.83117038]
[1742852649826,2e-07,88254.0,88253.0,0.83717038]
[1742852649959,2e-07,88254.0,88253.0,0.86717038]
[1742852650166,2e-07,88254.0,88253.0,1.28344829]
[1742852650838,2e-07,88254.0,88253.0,1.2713624]
[1742852651067,2e-07,88254.0,88253.0,1.2826934]
[1742852651466,2e-07,88254.0,88253.0,1.2776934]
[1742852651877,2e-07,88254.0,88253.0,1.2836934]
[1742852652523,2e-07,88254.0,88253.0,1.2776934]
[1742852652755,2e-07,88254.0,88253.0,1.2836934]
[1742852653336,0.0003394,88272.0,88271.0,0.011328]
[1742852653588,0.0004629,88272.0,88271.0,0.9807189]
[1742852654182,0.0004629,88272.0,88271.0,0.98932982]
[1742852655319,0.0004629,88272.0,88271.0,0.99132982]
[1742852655677,0.0004629,88272.0,88271.0,0.99432982]
[1742852656083,9e-07,88272.0,88271.0,0.99432982]
[1742852656943,9e-07,88272.0,88271.0,1.29432982]
[1742852658259,9e-07,88279.0,88278.0,0.537884]
[1742852658407,9e-07,88279.0,88278.0,0.66668249]
[1742852658813,9e-07,88279.0,88278.0,0.79196249]
[1742852659450,9e-07,88279.0,88278.0,0.79296249]
[1742852660552,9e-07,88279.0,88278.0,1.33184249]
[1742852662164,9e-07,88279.0,88278.0,1.7404409]
[1742852665953,9e-07,88279.0,88278.0,1.8213409]
[1742852678045,9e-07,88279.0,88278.0,1.8243409]
[1742852678270,9e-07,88279.0,88278.0,1.8236801]
[1742852678446,9e-07,88279.0,88278.0,1.8276801]
[1742852681428,9e-07,88279.0,88278.0,1.8627767]
[1742852688718,9e-07,88279.0,88278.0,1.7818767]
[1742852690226,0.0001705,88279.0,88278.0,1.7818767]
[1742852695082,0.0001705,88279.0,88278.0,1.78093136]
[1742852697256,0.0001705,88279.0,88278.0,1.78089136]
[1742852702149,0.0001705,88279.0,88278.0,1.65565136]
[1742852702362,0.0001705,88279.0,88278.0,1.46635051]
[1742852702744,0.0001705,88279.0,88278.0,1.48089136]
[1742852704088,0.0001705,88279.0,88278.0,1.35565136]
[1742852704249,0.0001705,88279.0,88278.0,1.48089136]
[1742852707452,0.0001705,88279.0,88278.0,1.44579476]
[1742852714710,0.0001705,88279.0,88278.0,1.03719635]
[1742852720828,0.0001705,88279.0,88278.0,0.91195635]
[1742852721095,0.0001705,88279.0,88278.0,1.03719635]
[1742852723310,0.0001705,88279.0,88278.0,0.91195635]
[1742852723534,0.0473705,88279.0,88278.0,0.2338962]
[1742852723739,0.3684515,88279.0,88278.0,0.0073392]
[1742852724136,0.37414053,88279.0,88278.0,0.0073392]
[1742852724340,0.37414053,88279.0,88278.0,0.0043392]
[1742852724683,0.37414053,88279.0,88278.0,0.0053392]
[1742852724885,0.226572,88272.0,88271.0,0.0003392]
[1742852725086,0.237905,88270.0,88269.0,0.12524]
[1742852725297,0.226582,88269.0,88265.0,0.22659]
[1742852725502,0.0766,88267.0,88264.0,0.32689838]
[1742852725728,0.0766,88267.0,88266.0,0.226587]
[1742852725929,0.00558793,88266.0,88264.0,0.32689838]
[1742852726175,0.0766,88267.0,88265.0,0.22659]
[1742852727355,0.0766,88267.0,88266.0,0.226587]
[1742852727793,0.0766,88267.0,88265.0,0.22659]
[1742852727998,0.0766,88267.0,88266.0,0.226587]
[1742852728466,0.0766,88267.0,88266.0,0.227587]
[1742852729280,0.0766,88267.0,88266.0,0.001]
[1742852729959,0.0766,88267.0,88266.0,0.227587]
[1742852730485,0.08218758,88267.0,88266.0,0.001]
[1742852730667,0.08218758,88267.0,88266.0,0.227587]
[1742852730804,0.08218758,88267.0,88266.0,0.228587]
[1742852731756,0.08754409,88267.0,88266.0,0.228587]
[1742852732768,0.08754409,88267.0,88266.0,0.002]
[1742852733380,0.31412909,88267.0,88266.0,0.002]
[1742852733701,0.08754409,88267.0,88266.0,0.002]
[1742852734635,0.08754409,88267.0,88266.0,0.228587]
[1742852735202,0.08754409,88267.0,88266.0,0.002]
[1742852736491,0.32545809,88267.0,88266.0,0.002]
[1742852737685,0.32545809,88267.0,88266.0,0.0023396]
[1742852740292,0.32545809,88267.0,88266.0,0.0013396]
[1742852740692,0.32545809,88267.0,88266.0,0.0023396]
[1742852740893,0.32545809,88267.0,88266.0,0.0013396]
[1742852741096,0.32545809,88267.0,88266.0,0.0003396]